Cogmind - Beta 13 @@@ ROGUE MODE // 2024.07.29 @ 18:15:58 Player: Dzuchun Result: Destroyed by S-10 Pest with Light Assault Rifle Performance ------------- Evolutions (1) 500 Regions Visited (6) 1200 Robots Destroyed (32) 160 Value Destroyed (573) 573 Prototype IDs (1) 20 Alien Tech Used (0) 0 Bonus (-52) -52 TOTAL SCORE: 2401 Bonus ------- Follower Combat Kills 25 Friendly Fire -77 Cogmind --------- Core Integrity 0/400 Matter 239/300 Energy 100/100 System Corruption 0% Temperature Cool (12) Movement Flying (37) Location -8/Mines Parts ------- > --- POWER (1) -------- (None) > --- PROPULSION (2) --- Flight Unit Flight Unit > --- UTILITY (3) ------ Signal Interpreter > --- WEAPON (3) ------- Assault Cannon > --- INVENTORY (5) ---- Nuclear Core Small Matter Pod (50) Light Assault Rifle Peak State ------------ > --- POWER ------------ Light Angular Momentum Engine > --- PROPULSION ------- Aluminum Leg Aluminum Leg > --- UTILITY ---------- Backup Plating III Backup Plating III > --- WEAPON ----------- EM Pulse Cannon Battle Cannon > --- INVENTORY -------- Hardlight Generator Backup Laser III Backup Laser III Improved Datajack Mining Laser [Rating: 19] Favorites ----------- Power Cooled Ion Engine Engine Cooled Ion Engine Power Core Light Nuclear Core Propulsion Aluminum Leg Treads Advanced Treads Leg Aluminum Leg Flight Unit Flight Unit Utility Backup Plating III Device ECM Suite Processor Signal Interpreter Protection Backup Plating III Weapon Spread Laser Energy Gun Spread Laser Energy Cannon EM Pulse Cannon Ballistic Gun Light Assault Rifle Ballistic Cannon Battle Cannon Special Weapon Mining Laser Special Melee Weapon Improved Datajack Build | -11 -10 -10 -9 -9 -9 -8 ------- Run | Yrd Mat Min Mat Min Exi Min Slots Evolved 2 | . . . 2 . . . Power . | . . . . . . . Propulsion . | . . . . . . . Utility 1 | . . . 1 . . . Weapon 1 | . . . 1 . . . Parts Attached 40 | 5 . 12 13 . 1 9 Power 9 | 3 . 2 2 . . 2 Engine 8 | 3 . 1 2 . . 2 Core 1 | . . 1 . . . . Reactor . | . . . . . . . Propulsion 10 | 2 . 1 4 . . 3 Treads 2 | . . . 2 . . . Leg 5 | 2 . 1 2 . . . Wheel . | . . . . . . . Hover . | . . . . . . . Flight 3 | . . . . . . 3 Utility 6 | . . 2 4 . . . Device 3 | . . 2 1 . . . Storage . | . . . . . . . Processor 3 | . . . 3 . . . Hackware . | . . . . . . . Protection . | . . . . . . . Artifact . | . . . . . . . Weapon 15 | . . 7 3 . 1 4 Energy Gun 2 | . . . 2 . . . Energy Cannon 4 | . . 3 . . 1 . Ballistic Gun 3 | . . . . . . 3 Ballistic Cannon 2 | . . 1 . . . 1 Launcher . | . . . . . . . Special Weapon 2 | . . 1 1 . . . Impact Weapon . | . . . . . . . Slashing Weapon . | . . . . . . . Piercing Weapon . | . . . . . . . Special Melee Weapon 2 | . . 2 . . . . Unidentified Prototypes 1 | . . . 1 . . . Parts Lost 15 | . . 3 2 . . 10 Power 3 | . . 1 . . . 2 Propulsion 4 | . . 1 1 . . 2 Utility 2 | . . . . . . 2 Weapon 6 | . . 1 1 . . 4 Highest Loss Streak 4 | . . 1 1 . . 4 To Critical Strikes . | . . . . . . . Average Slot Usage (%) 82 | . 83 98 94 77 66 62 Engine 10 | . 14 9 8 11 11 9 Treads 4 | . . . 4 11 11 1 Leg 14 | . 28 27 17 . . . Device 8 | . . 2 16 11 11 10 Processor 10 | . . . 10 22 22 16 Protection 10 | . 20 25 4 . . . Energy Gun 7 | . 20 2 21 22 . . Energy Cannon 4 | . . 3 1 . 10 1 Ballistic Gun 1 | . . . . . . 14 Ballistic Cannon 3 | . . 11 . . . 1 Special Weapon 2 | . . 3 8 . . . Special Melee Weapon 1 | . . 6 . . . . Naked Turns . | . . . . . . . Heaviest Build 24 | 5 11 22 24 16 16 16 Greatest Support 44 | 20 20 20 44 22 22 22 Greatest Overweight (x) 3 | . . 1 1 . . 3 Average Overweight (x) . | . . . . . . . Largest Inventory Capacity 5 | 5 5 5 5 5 5 5 Average Capacity 5 | 5 5 5 5 5 5 5 Most Carried 5 | 1 1 5 5 4 5 5 Average Carried 3 | . . 4 3 4 3 3 Final Capacity 5 | 5 5 5 5 5 5 5 Final Carried 5 | 1 1 5 4 4 4 3 Class Distribution -------------------- 75% | Mutant 10% | Gunner 9% | Tank 4% | Scavenger-Mutant Dominant Class ---------------- Mutant | -10/Materials Mutant | -10/Mines Gunner | -9/Materials Mutant | -9/Mines Mutant | -9/Exiles Mutant | -8/Mines Resources | -11 -10 -10 -9 -9 -9 -8 ----------- Run | Yrd Mat Min Mat Min Exi Min Matter Collected 588 | 209 41 143 130 . 10 55 Remotely . | . . . . . . . Salvage Created 670 | . 85 209 199 . . 177 Parts 57 | . 3 10 14 . . 30 Haulers Intercepted . | . . . . . . . Recyclers Shooed . | . . . . . . . Parts Field Recycled . | . . . . . . . Retrieved Matter . | . . . . . . . Parts Self-Destructed . | . . . . . . . Prevented . | . . . . . . . Kills | -11 -10 -10 -9 -9 -9 -8 ------- Run | Yrd Mat Min Mat Min Exi Min Combat Hostiles Destroyed 28 | . 2 5 9 . . 12 Guns 17 | . 1 . 9 . . 7 Cannons 9 | . . 5 . . . 4 AOE 1 | . . . . . . 1 Classes Destroyed 7 | . 1 2 3 . . 1 Worker 1 | . . . 1 . . . Tunneler 1 | . . . . . . 1 Recycler 1 | . . 1 . . . . Watcher 1 | . . . 1 . . . Swarmer 19 | . . 3 4 . . 12 Grunt 8 | . 2 2 4 . . . Sentry 1 | . . . 1 . . . Best Kill Streak 8 | . 2 4 8 . . 5 Combat Bots Only 7 | . 2 3 7 . . 5 Max Kills in Single Turn 2 | . 1 1 2 . . 2 Gunslinging 1 | . . . 1 . . . Exploded 1 | . . . . . . 1 Melee . | . . . . . . . Uniques/NPCs Destroyed . | . . . . . . . Combat | -11 -10 -10 -9 -9 -9 -8 -------- Run | Yrd Mat Min Mat Min Exi Min Hostile Shots Fired 273 | . 15 37 72 . . 149 Missed 85 | . 5 11 15 . . 54 Damage Taken 2020 | . 184 318 630 . . 888 Core 503 | . 33 70 93 . . 307 Absorbed by Shields . | . . . . . . . Core Remaining (%) 79 | 100 . 58 . . . . Volleys Fired 79 | . 11 15 19 . . 34 Largest 3 | . 2 2 2 . . 3 Hottest 130 | . 80 102 130 . . 84 Shots Fired 128 | . 22 19 38 . . 49 Gun 93 | . 22 . 38 . . 33 Cannon 35 | . . 19 . . . 16 Launcher . | . . . . . . . Special . | . . . . . . . Kinetic 48 | . . 8 . . . 40 Thermal 60 | . 22 . 38 . . . Explosive . | . . . . . . . Electromagnetic 20 | . . 11 . . . 9 Robot Hit Streak 8 | . 5 5 8 . . 6 Robot Miss Streak 9 | . 2 2 9 . . 4 Penetration Max . | . . . . . . . Secondary Targets 3 | . . . 3 . . . Max Gunslinging Chain 1 | . . . 1 . . . Shots Hit Robots 90 | . 16 17 34 . . 23 Core Hits 67 | . 3 6 44 . . 14 Critical Kills . | . . . . . . . Critical Parts Destroyed 1 | . . . . . . 1 Critical Strikes 1 | . . . . . . 1 Destroy 1 | . . . . . . 1 Melee Attacks 5 | . . 5 . . . . Impact . | . . . . . . . Slashing . | . . . . . . . Piercing . | . . . . . . . Sneak Attacks 4 | . . 4 . . . . Combat Hostiles . | . . . . . . . Follow-up Attacks . | . . . . . . . Damage Inflicted 1401 | . 206 366 415 . . 414 Guns 742 | . 206 . 415 . . 121 Cannons 499 | . . 296 . . . 203 Explosions 156 | . . 67 . . . 89 Melee . | . . . . . . . Ramming 4 | . . 3 . . . 1 Kinetic 315 | . . 120 . . . 195 Thermal 777 | . 206 67 415 . . 89 Explosive . | . . . . . . . Electromagnetic 305 | . . 176 . . . 129 Impact . | . . . . . . . Slashing . | . . . . . . . Piercing . | . . . . . . . Highest Corruption . | . . . . . . . Average Corruption . | . . . . . . . Corruption Purged . | . . . . . . . Corruption Blocked . | . . . . . . . Overload Shots . | . . . . . . . Overflow Damage 22 | . . 22 . . . . Projectiles 9 | . . 9 . . . . Explosions 13 | . . 13 . . . . Melee . | . . . . . . . Knockbacks . | . . . . . . . Impact . | . . . . . . . Kinetic . | . . . . . . . Secondary . | . . . . . . . Self-Inflicted Damage 62 | . . 62 . . . . Shots 1 | . . 1 . . . . Rammed 2 | . . . . . . 2 Targets Rammed 3 | . . 1 . . . 2 Kicked 1 | . . 1 . . . . Crushed . | . . . . . . . Highest Temperature 408 | . 353 174 408 . . 72 Average Temperature 110 | . 178 72 133 . . 27 Received Heat Transfer 501 | . 99 69 288 . . 45 Effects 5 | . 2 . 3 . . . Shutdowns 1 | . 1 . . . . . Energy Bleed 1 | . 1 . . . . . Interference 3 | . . . 3 . . . Siege Activations . | . . . . . . . Robots Corrupted . | . . . . . . . Combat Hostiles . | . . . . . . . Parts Fried . | . . . . . . . Impact Corruptions . | . . . . . . . Robots Melted 1 | . 1 . . . . . Combat Hostiles 1 | . 1 . . . . . Parts Melted 4 | . 3 . 1 . . . Heat Transferred 1322 | . 592 100 530 . . 100 Parts Sabotaged . | . . . . . . . Parts Stolen . | . . . . . . . Parts Stripped . | . . . . . . . Power Chain Reactions 2 | . . 1 . . . 1 Alert | -11 -10 -10 -9 -9 -9 -8 ------- Run | Yrd Mat Min Mat Min Exi Min Peak Influence 290 | . 82 144 222 82 . 290 Initial 82 | . . 31 5 82 . . Average 55 | . 50 45 47 82 . 101 Maximum Alert Level 1 | . . . 1 . . 1 Low Security (%) 97 | 100 100 100 93 100 . 94 Level 1 2 | . . . 6 . . 5 Level 2 . | . . . . . . . Level 3 . | . . . . . . . Level 4 . | . . . . . . . Level 5 . | . . . . . . . High Security . | . . . . . . . Max Security . | . . . . . . . Squads Dispatched 9 | . 3 1 5 . . . Investigation 6 | . 2 1 3 . . . Extermination . | . . . . . . . Reinforcement 3 | . 1 . 2 . . . Assault . | . . . . . . . Garrison . | . . . . . . . Intercept . | . . . . . . . Searches Triggered . | . . . . . . . Construction Impeded . | . . . . . . . Haulers Reinforced . | . . . . . . . Active Scanning Responses . | . . . . . . . Cargo Convoy Interrupts . | . . . . . . . Stealth | -11 -10 -10 -9 -9 -9 -8 --------- Run | Yrd Mat Min Mat Min Exi Min Distress Signals 1 | . . . 1 . . . Communications Jammed . | . . . . . . . Distress Signals . | . . . . . . . Times Spotted 56 | . 4 7 23 . . 22 Peak Tracking Total 11 | . 3 3 6 . . 11 Tactical Retreats 4 | . . 1 . . . 3 Traps | -11 -10 -10 -9 -9 -9 -8 ------- Run | Yrd Mat Min Mat Min Exi Min Traps Triggered 2 | . 2 . . . . . Indirectly . | . . . . . . . Trap Hack Attempts . | . . . . . . . Triggered . | . . . . . . . Disarmed . | . . . . . . . Reprogrammed . | . . . . . . . Reused . | . . . . . . . Traps Extracted . | . . . . . . . Installed . | . . . . . . . Triggered . | . . . . . . . Machines | -11 -10 -10 -9 -9 -9 -8 ---------- Run | Yrd Mat Min Mat Min Exi Min Machines Disabled 1 | . . 1 . . . . Max in Single Turn . | . . . . . . . Machines Repaired . | . . . . . . . Machines Dismantled . | . . . . . . . Machines Sabotaged . | . . . . . . . Overloaded Fab Kills . | . . . . . . . Hacking | -11 -10 -10 -9 -9 -9 -8 --------- Run | Yrd Mat Min Mat Min Exi Min Machines Accessed 7 | . 3 1 3 . . . Terminals 3 | . 1 . 2 . . . Fabricators . | . . . . . . . Repair Stations 1 | . 1 . . . . . Recycling Units 2 | . 1 . 1 . . . Scanalyzers . | . . . . . . . Garrison Access . | . . . . . . . Total Hacks 23 | . 10 1 12 . . . Successful 10 | . 4 1 5 . . . Failed 13 | . 6 . 7 . . . Catastrophic 1 | . 1 . . . . . Database Lockouts . | . . . . . . . Manual 12 | . 5 . 7 . . . Terminals 12 | . 5 . 7 . . . Fabricators . | . . . . . . . Repair Stations 2 | . 2 . . . . . Recycling Units 8 | . 3 . 5 . . . Scanalyzers . | . . . . . . . Garrison Access . | . . . . . . . Terminal Hacks 5 | . 1 1 3 . . . Open Door 1 | . . 1 . . . . Locate Traps 3 | . 1 . 2 . . . Zone Layout 1 | . . . 1 . . . Fabricator Hacks . | . . . . . . . Repair Station Hacks 1 | . 1 . . . . . Refit 1 | . 1 . . . . . Recycling Unit Hacks 4 | . 2 . 2 . . . Recycle Component 1 | . 1 . . . . . Process 1 | . 1 . . . . . Report Inventory 1 | . . . 1 . . . Retrieve Components 1 | . . . 1 . . . Scanalyzer . | . . . . . . . Garrison Access Hacks . | . . . . . . . Unauthorized Hacks . | . . . . . . . Terminals . | . . . . . . . Fabricators . | . . . . . . . Repair Stations . | . . . . . . . Recycling Units . | . . . . . . . Scanalyzers . | . . . . . . . Garrison Access . | . . . . . . . Data Cores Recovered . | . . . . . . . Used . | . . . . . . . Hacking Detections 6 | . 3 . 3 . . . Full Trace Events 5 | . 2 . 3 . . . Feedback Events . | . . . . . . . Feedback Blocked . | . . . . . . . Robot Schematics Acquired . | . . . . . . . Robots Built . | . . . . . . . Authchips . | . . . . . . . Time . | . . . . . . . Total Robot Build Rating . | . . . . . . . Part Schematics Acquired . | . . . . . . . Parts Built . | . . . . . . . Authchips . | . . . . . . . Time . | . . . . . . . Total Part Build Rating . | . . . . . . . Parts Repaired . | . . . . . . . Time . | . . . . . . . Parts Recycled 1 | . 1 . . . . . Recycled Matter 34 | . 34 . . . . . Retrieved Matter . | . . . . . . . Retrieved Components 9 | . . . 9 . . . Parts Scanalyzed . | . . . . . . . Part Schematics Acquired . | . . . . . . . Parts Damaged . | . . . . . . . Bothacking | -11 -10 -10 -9 -9 -9 -8 ------------ Run | Yrd Mat Min Mat Min Exi Min Used RIF Installer . | . . . . . . . Robots Hacked 4 | . . 4 . . . . Non-combat 3 | . . 3 . . . . Combat 1 | . . 1 . . . . Robot Hacks Applied 4 | . . 4 . . . . parse_system 1 | . . 1 . . . . no_distress 3 | . . 3 . . . . Relay Couplers Released . | . . . . . . . Fabnet Peak Effective % . | . . . . . . . Robots Rewired . | . . . . . . . Allies Hacked . | . . . . . . . Hacks Repelled . | . . . . . . . Allies | -11 -10 -10 -9 -9 -9 -8 -------- Run | Yrd Mat Min Mat Min Exi Min Total Allies 3 | . . 3 . . . . Largest Group 2 | . . 2 . . . . Highest-Rated Group 45 | . . 45 . . . . Highest-Rated Ally 31 | . . 31 . . . . Total Orders . | . . . . . . . Ally Attacks 12 | . . 12 . . . . Total Damage 190 | . . 190 . . . . Kills 1 | . . 1 . . . . Allies Corrupted . | . . . . . . . Allies Melted . | . . . . . . . Intel | -11 -10 -10 -9 -9 -9 -8 ------- Run | Yrd Mat Min Mat Min Exi Min Robot Analysis Total . | . . . . . . . Derelict Logs Recovered 1 | . . 1 . . . . Drone Launches . | . . . . . . . Drone Recoveries . | . . . . . . . Exploration | -11 -10 -10 -9 -9 -9 -8 ------------- Run | Yrd Mat Min Mat Min Exi Min Turns Passed 2617 | 52 207 739 555 43 707 314 Spaces Moved 1735 | 41 145 466 305 30 483 265 Core 90 | 6 . . . . . 84 Treads 576 | . . . 45 30 483 18 Legs 906 | 35 145 466 260 . . . Wheels . | . . . . . . . Hover . | . . . . . . . Flight 163 | . . . . . . 163 Fastest Speed 37 | 50 120 120 120 145 145 37 Average Speed 129 | 109 120 129 151 145 145 83 Slowest Speed 200 | 120 120 190 190 145 145 200 Overloaded Moves . | . . . . . . . Propulsion Burnouts . | . . . . . . . Robots Hopped 8 | . . . . . . 8 Cave-ins Triggered . | . . . . . . . Exploration Rate (%) 41 | 3 30 89 27 4 79 61 Regions Visited 6 Branch Regions 4 Pre-discovered Areas . | . . . . . . . Known Exits Taken 3 | . . . 1 1 1 . Unknown Exits Taken 3 | 1 1 1 . . . . Scrap Searched 2 | . . 1 . . . 1 Spaces Dug . | . . . . . . . Terrain Destroyed 16 | . . 11 . . . 5 Melee . | . . . . . . . Projectile 1 | . . . . . . 1 AOE 15 | . . 11 . . . 4 Terrain Rammed . | . . . . . . . Walls Destroyed . | . . . . . . . Machines Disabled . | . . . . . . . Actions | -11 -10 -10 -9 -9 -9 -8 --------- Run | Yrd Mat Min Mat Min Exi Min Total 1968 | 45 156 580 359 29 492 307 Wait 75 | . . 69 5 . . 1 Move 1716 | 40 144 465 304 29 482 252 Hop 5 | . . . . . . 5 Pick Up 20 | . 1 5 9 . 4 1 Fast Attach 20 | 3 . 4 4 . . 9 Attach 2 | . . . 1 . 1 . Detach . | . . . . . . . Swap 18 | 2 . 8 8 . . . Drop 21 | . . 4 9 . 5 3 Fire 79 | . 11 15 19 . . 34 Melee 5 | . . 5 . . . . Ram 2 | . . . . . . 2 Kick 1 | . . 1 . . . . Crush . | . . . . . . . Escape Stasis . | . . . . . . . Rewire 4 | . . 4 . . . . Trap . | . . . . . . . Miscellaneous . | . . . . . . . Route ------- -11/Scrapyard -10/Materials -10/Mines -9/Materials (discovered 2 exits: Mat / *Min) -9/Mines -9/Exiles (discovered 2 exits: *Min x2) -8/Mines History --------- Turn | Location | Event 10 | -11/Scrapyard | Discovered new exit (range 15) 53 | -11/Scrapyard | Entered Materials 246 | -10/Materials | Discovered new exit (range 8) 260 | -10/Materials | Entered Mines 263 | -10/Mines | Received a Mining Laser from a helpful Derelict 303 | -10/Mines | Build established: Mutant 352 | -10/Mines | A weapon hastily lodged in a ceiling crevice suddenly fell to the ground 452 | -10/Mines | Met a Derelict shopkeep closing up shop 717 | -10/Mines | Found a hidden stash of uninstalled traps 735 | -10/Mines | Learned location of 1 exit from Materials 928 | -10/Mines | Discovered new exit (range 11) 999 | -10/Mines | Entered Materials 999 | -9/Materials | Evolved 2 slots: Utility x1, Weapon x1 1000 | -9/Materials | Identified exit to Materials 1535 | -9/Materials | Discovered new exit (range 14) 1540 | -9/Materials | Destroyed 7 combat bots 1552 | -9/Materials | Identified exit to Mines 1554 | -9/Materials | Entered Mines 1581 | -9/Mines | Met a Derelict bent on vengeance 1586 | -9/Mines | Deemed a non-threat by the Exiles lab entrance 1588 | -9/Mines | Discovered new exit (range 5) 1594 | -9/Mines | Identified exit to Exiles 1597 | -9/Mines | Entered Exiles 1645 | -9/Exiles | Discovered new exit (range 14) 1661 | -9/Exiles | Identified exit to Mines 1688 | -9/Exiles | Met 8R-AWN 1711 | -9/Exiles | Met EX-HEX 1766 | -9/Exiles | Met EX-DEC 1883 | -9/Exiles | Discovered exit to Mines (range 10) 2012 | -9/Exiles | Visited The Gauntlet 2304 | -9/Exiles | Entered Mines 2456 | -8/Mines | Core integrity fell below 50% 2591 | -8/Mines | Core integrity fell below 20% 2618 | -8/Mines | Destroyed by S-10 Pest with Light Assault Rifle Last Messages --------------- 02542_ Acquired 5 matter. 02542_ K-01 Serf collects debris. 02545_ Acquired Flight Unit. 02546_ K-01 Serf collects debris. 02569_ Critical hit (Burn: +37). 02585_ Searching scrap... 02585_ Found Reaction Control System. 02585_ Found Seismic Detector. 02585_ Found Assault Cannon. 02585_ Found 22 Matter. 02585_ Acquired Assault Cannon. 02592_ Lgt. Ion Engine destroyed. 02593_ ECM Suite destroyed. 02598_ S-10 Pest destroyed. 02607_ S-10 Pest suffers critical hit (Destroy). 02607_ Destroyed Lgt. Assault Rifle. 02607_ S-10 Pest destroyed. 02607_ Lgt. Assault Rifle destroyed. 02615_ S-10 Pest destroyed. 02616_ Lgt. Assault Rifle destroyed. Map ----- +----------------------------------------------------+ | | | | | | | | | | | | | | | | | | | | | | | | | | | | | | | | | | | | | | | | | ???????????????????????????????????? | | ???????????????????????????????????? | | ???????????????????????????????????? | | #???????####????????????#####??????? | | ####### ###????####### ##?????? | | ##??##; @ #?????? | | #### #????? | | =*%s[ ## #????? | | ???# %=g[=% ####### ##????? | | ???## =%s= ##??????###?????? | | ????## ## ### ##???????????????? | | ????????# !##?####????????????????? | | ????????# %##???####???????????????? | | ????????# !#???## ##??????###?????? | | ????????# #??## ####### ##????? | | ????????# #### #????? | | ?????# ## ##???? | | ?????# #???? | | ?????######### #???? | | ?????????????## #### #???? | | ????????#?????## ##??### ##???? | | ???????? ##????###?????## #????? | | ????????? ##???????????# ##????? | | ????????? #??????????## #?????? | | ?????????? #??????????# ##?????? | | ?????????? #?????????## ##?????? | | ??????????# ######???## ##????? | | ??????????# #???# #????? | | ?????????## #### #???# #????? | | ????????## ##?# ##### #????? | +----------------------------------------------------+ Best States ------------- Heat Dissipation 28 Energy Generation 18 Energy Capacity 280 Matter Stores 300 Matter Capacity 300 Sight Range 16 Terrain Scan Density 10 ECM Strength 1 Armor Coverage 160 Evasion (%) 62 Targeting Accuracy 6 Recoil Reduction 2 Item Schematics ----------------- None Robot Schematics ------------------ None Fabricated ------------ Nothing Alien Tech Used ----------------- None Achievements -------------- It's Just You Challenges ------------ None Game ------ Seed BombardmentPhaseSaw Manual? 0 Play Time 00:44:03 Cumulative 5.3 hours Start 2024.07.29 @ 17:33:35 End 2024.07.29 @ 18:15:58 Sessions 1 Manual Loads 0 Difficulty Rogue Special Mode None Game No. 7 Rogue 7 Adventurer 0 Explorer 0 Win Type - Total 0 Types 0/0/0/0/0/0/0/0/0 Lore% 8 Gallery% 8 Achievement% 9 Wizard Run 0 Options --------- Layout 0 ASCII 0 Keyboard 1 Movement Vi Keybinds 0 Fullscreen 1 Font 18/X11Bold Map View 76x50 Zoom Use 0% Tactical HUD 1 Map Filters NONE Filters NONE Steam 1 RUN: da05bfeb-1d3b-46b3-8fe4-e60755dd24d7